fUST/lending_fUST_20240919
["ID","MTS","AMOUNT","RATE_DAILY","PERIOD"]
[338571718,1726740647758,-567.75,0.00016712,2]
[338571719,1726740647767,-605.85,0.00016712,2]
[338571720,1726740647777,-1327.2,0.00016712,2]
[338571721,1726740647786,-212.77,0.00016712,2]
[338571722,1726740647795,-500.0,0.00016712,2]
[338571723,1726740647805,-727.02,0.00016712,2]
[338571724,1726740647814,-816.62,0.00016712,2]
[338571725,1726740647823,-910.3,0.00016712,2]
[338571726,1726740647833,-500.0,0.00016712,2]
[338571727,1726740647842,-151.0,0.00016712,2]
[338571728,1726740647851,-500.0,0.00016712,2]
[338571729,1726740647861,-909.72,0.00016712,2]
[338571730,1726740647870,-500.0,0.00016712,2]
[338571731,1726740647880,-500.0,0.00016712,2]
[338571732,1726740647889,-971.94,0.00016712,2]
[338571733,1726740647898,-500.0,0.00016712,2]
[338571734,1726740647907,-712.6,0.00016712,2]
[338571735,1726740647917,-500.0,0.00016712,2]
[338571736,1726740647926,-500.0,0.00016712,2]
[338571737,1726740647936,-500.0,0.00016712,2]
[338571738,1726740647945,-500.0,0.00016712,2]
[338571739,1726740647954,-2050.85,0.00016712,2]
[338571740,1726740647965,-830.19,0.00016712,2]
[338571741,1726740647975,-500.0,0.00016712,2]
[338571742,1726740647984,-500.0,0.00016712,2]
[338571743,1726740647994,-500.0,0.00016712,2]
[338571744,1726740648003,-650.31,0.00016712,2]
[338571745,1726740648013,-500.0,0.00016712,2]
[338571746,1726740648022,-500.0,0.00016712,2]
[338571747,1726740648032,-500.0,0.00016712,2]
[338571748,1726740648041,-500.0,0.00016712,2]
[338571749,1726740648051,-500.0,0.00016712,2]
[338571750,1726740648061,-500.0,0.00016712,2]
[338571751,1726740648071,-500.0,0.00016712,2]
[338571752,1726740648080,-500.0,0.00016712,2]
[338571753,1726740648090,-770.02,0.00016712,2]
[338571754,1726740648099,-382.7023557,0.00016712,2]
[338571755,1726740648108,-500.0,0.00016712,2]
[338571756,1726740648118,-500.0,0.00016712,2]
[338571757,1726740648128,-253.30135215,0.00016712,2]
[338571758,1726740648138,-1394.53,0.00016712,2]
[338571759,1726740648148,-500.0,0.00016712,2]
[338571760,1726740648158,-522.15641144,0.00016712,2]
[338571761,1726740648167,-536.46,0.00016712,2]
[338571762,1726740648177,-500.0,0.00016712,2]
[338571763,1726740648186,-2476.0,0.00016712,2]
[338571764,1726740648195,-500.0,0.00016712,2]
[338571765,1726740648206,-500.0,0.00016712,2]
[338571766,1726740648216,-500.0,0.00016712,2]
[338571767,1726740648226,-500.0,0.00016712,2]
[338571768,1726740648235,-500.0,0.00016712,2]
[338571769,1726740648244,-500.0,0.00016712,2]
[338571770,1726740648254,-502.19,0.00016712,2]
[338571771,1726740648263,-500.0,0.00016712,2]
[338571772,1726740648272,-500.55173385,0.00016712,2]
[338571773,1726740648281,-715.51,0.00016712,2]
[338571774,1726740648291,-763.89,0.00016712,2]
[338571775,1726740648301,-1124.74,0.00016712,2]
[338571776,1726740648310,-743.96,0.00016712,2]
[338571777,1726740648319,-1110.08,0.00016712,2]
[338571778,1726740648329,-155.219815,0.00016712,2]
[338571779,1726740648339,-830.39,0.00016712,2]
[338571780,1726740648348,-402.025099,0.00016712,2]
[338571781,1726740648357,-500.0,0.00016712,2]
[338571782,1726740648368,-155.219815,0.00016712,2]
[338571783,1726740648377,-402.025099,0.00016712,2]
[338571784,1726740648387,-500.0,0.00016712,2]
[338571785,1726740648396,-500.0,0.00016712,2]
[338571786,1726740648405,-1021.65,0.00016712,2]
[338571787,1726740648415,-500.0,0.00016712,2]
[338571788,1726740648476,-500.0,0.00016712,2]
[338571789,1726740648487,-500.0,0.00016712,2]
[338571790,1726740648496,-500.0,0.00016712,2]
[338571791,1726740648505,-2065.09,0.00016712,2]
[338571792,1726740648515,-500.0,0.00016712,2]
[338571793,1726740648524,-500.0,0.00016712,2]
[338571794,1726740648533,-500.0,0.00016712,2]
[338571795,1726740648542,-500.0,0.00016712,2]
[338571796,1726740648556,-500.0,0.00016712,2]
[338571797,1726740648566,-500.0,0.00016712,2]
[338571798,1726740648575,-500.0,0.00016712,2]
[338571799,1726740648585,-500.0,0.00016712,2]
[338571800,1726740648594,-500.0,0.00016712,2]
[338571801,1726740648604,-500.0,0.00016712,2]
[338571802,1726740648614,-500.0,0.00016712,2]
[338571803,1726740648623,-1462.49,0.00016712,2]
[338571804,1726740648633,-151.0,0.00016712,2]
[338571805,1726740648643,-870.22,0.00016712,2]
[338571806,1726740648652,-151.0,0.00016712,2]
[338571807,1726740648662,-500.0,0.00016712,2]
[338571808,1726740648672,-220.42734356,0.00016712,2]
[338571809,1726740648681,-500.0,0.00016712,2]
[338571810,1726740648690,-774.77,0.00016712,2]
[338571811,1726740648699,-500.0,0.00016712,2]
[338571812,1726740648709,-500.0,0.00016712,2]
[338571813,1726740648722,-565.32,0.00016712,2]
[338571814,1726740648739,-500.0,0.00016712,2]
[338571815,1726740648749,-500.0,0.00016712,2]
[338571816,1726740648757,-764.02,0.00016712,2]
[338571817,1726740648766,-500.0,0.00016712,2]
[338571818,1726740648776,-1230.82,0.00016712,2]
[338571819,1726740648785,-554.09,0.00016712,2]
[338571820,1726740648794,-695.74,0.00016712,2]
[338571821,1726740648803,-500.0,0.00016712,2]
[338571822,1726740648813,-500.0,0.00016712,2]
[338571823,1726740648822,-1222.23,0.00016712,2]
[338571824,1726740648831,-500.0,0.00016712,2]
[338571825,1726740648839,-500.0,0.00016712,2]
[338571826,1726740648848,-570.77,0.00016712,2]
[338571827,1726740648857,-644.71668647,0.00016712,2]
[338571828,1726740648866,-560.01,0.00016712,2]
[338571829,1726740648875,-565.95713077,0.00016712,2]
[338571830,1726740648885,-500.0,0.00016712,2]
[338571831,1726740648894,-500.0,0.00016712,2]
[338571832,1726740648903,-784.55,0.00016712,2]
[338571833,1726740648913,-500.0,0.00016712,2]
[338571834,1726740648922,-677.29,0.00016712,2]
[338571835,1726740648931,-500.0,0.00016712,2]
[338571836,1726740648940,-500.0,0.00016712,2]
[338571837,1726740648950,-1770.58,0.00016712,2]
[338571838,1726740648959,-151.0,0.00016712,2]
[338571839,1726740648975,-500.0,0.00016712,2]
[338571840,1726740648984,-500.0,0.00016712,2]
[338571841,1726740648993,-1715.13,0.00016712,2]
[338571842,1726740649002,-500.0,0.00016712,2]
[338571843,1726740649012,-2852.1,0.00016712,2]
[338571844,1726740649021,-672.47,0.00016712,2]
[338571845,1726740649030,-500.0,0.00016712,2]
[338571846,1726740649039,-500.0,0.00016712,2]
[338571847,1726740649048,-500.0,0.00016712,2]
[338571848,1726740649057,-500.0,0.00016712,2]
[338571849,1726740649067,-500.0,0.00016712,2]
[338571850,1726740649076,-500.0,0.00016712,2]
[338571851,1726740649085,-151.0,0.00016712,2]
[338571852,1726740649094,-500.0,0.00016712,2]
[338571853,1726740649103,-500.0,0.00016712,2]
[338571854,1726740649112,-500.0,0.00016712,2]
[338571855,1726740649122,-500.0,0.00016712,2]
[338571856,1726740649131,-500.0,0.00016712,2]
[338571857,1726740649140,-652.98,0.00016712,2]
[338571858,1726740649149,-2085.62,0.00016712,2]
[338571859,1726740649158,-551.72,0.00016712,2]
[338571860,1726740649168,-500.0,0.00016712,2]
[338571861,1726740649178,-500.0,0.00016712,2]
[338571862,1726740649187,-500.0,0.00016712,2]
[338571863,1726740649196,-500.0,0.00016712,2]
[338571864,1726740649205,-500.0,0.00016712,2]
[338571865,1726740649217,-500.0,0.00016712,2]
[338571866,1726740649226,-500.0,0.00016712,2]
[338571867,1726740649235,-500.0,0.00016712,2]
[338571868,1726740649244,-500.0,0.00016712,2]
[338571869,1726740649253,-500.0,0.00016712,2]
[338571870,1726740649262,-500.0,0.00016712,2]
[338571871,1726740649271,-295.948076,0.00016712,2]
[338571872,1726740649279,-500.0,0.00016712,2]
[338571873,1726740649289,-295.948076,0.00016712,2]
[338571874,1726740649298,-704.49,0.00016712,2]
[338571875,1726740649308,-1044.529557,0.00016712,2]
[338571876,1726740649317,-501.2792611,0.00016712,2]
[338571877,1726740649327,-500.0,0.00016712,2]
[338571878,1726740649337,-1795.31,0.00016712,2]
[338571879,1726740649346,-500.0,0.00016712,2]
[338571880,1726740649355,-681.91,0.00016712,2]
[338571881,1726740649365,-1313.78,0.00016712,2]
[338571882,1726740649374,-500.0,0.00016712,2]
[338571883,1726740649383,-500.0,0.00016712,2]
[338571884,1726740649392,-1044.529557,0.00016712,2]
[338571885,1726740649401,-500.0,0.00016712,2]
[338571886,1726740649410,-1515.81,0.00016712,2]
[338571887,1726740649420,-500.0,0.00016712,2]
[338571888,1726740649430,-500.0,0.00016712,2]
[338571889,1726740649440,-700.7,0.00016712,2]
[338571890,1726740649450,-872.26,0.00016712,2]
[338571891,1726740649461,-928.9,0.00016712,2]
[338571892,1726740649472,-805.38,0.00016712,2]
[338571893,1726740649482,-500.0,0.00016712,2]
[338571894,1726740649491,-2341.35,0.00016712,2]
[338571895,1726740649500,-268.650822,0.00016712,2]
[338571896,1726740649510,-1703.77,0.00016712,2]
[338571897,1726740649520,-500.0,0.00016712,2]
[338571898,1726740649530,-749.47,0.00016712,2]
[338571899,1726740649541,-268.650822,0.00016712,2]
[338571900,1726740649555,-500.0,0.00016712,2]
[338571901,1726740649564,-500.0,0.00016712,2]
[338571902,1726740649574,-1362.24,0.00016712,2]
[338571903,1726740649584,-500.0,0.00016712,2]
[338571904,1726740649595,-442.54357008,0.00016712,2]
[338571905,1726740649605,-500.0,0.00016712,2]
[338571906,1726740649614,-500.0,0.00016712,2]
[338571907,1726740649625,-534.41,0.00016712,2]
[338571908,1726740649635,-952.51,0.00016712,2]
[338571909,1726740649645,-158.17292077,0.00016712,2]
[338571910,1726740649655,-868.5,0.00016712,2]
[338571911,1726740649666,-924.54,0.00016712,2]
[338571912,1726740649676,-722.36,0.00016712,2]
[338571913,1726740649687,-500.0,0.00016712,2]
[338571914,1726740649696,-851.97,0.00016712,2]
[338571915,1726740649706,-2616.56,0.00016712,2]
[338571916,1726740649716,-151.0,0.00016712,2]
[338571917,1726740649726,-500.0,0.00016712,2]
[338571918,1726740649735,-2156.69,0.00016712,2]
[338571919,1726740649744,-500.0,0.00016712,2]
[338571920,1726740649753,-500.0,0.00016712,2]
[338571921,1726740649766,-500.0,0.00016712,2]
[338571922,1726740649776,-167.476316,0.00016712,2]
[338571923,1726740649785,-484.77383694,0.00016712,2]
[338571924,1726740649795,-500.0,0.00016712,2]
[338571925,1726740649807,-500.0,0.00016712,2]
[338571926,1726740649818,-500.0,0.00016712,2]
[338571927,1726740649828,-500.0,0.00016712,2]
[338571928,1726740649837,-167.476316,0.00016712,2]
[338571929,1726740649847,-500.0,0.00016712,2]
[338571930,1726740649857,-1443.83,0.00016712,2]
[338571931,1726740649866,-500.0,0.00016712,2]
[338571932,1726740649875,-674.78,0.00016712,2]
[338571933,1726740649885,-151.0,0.00016712,2]
[338571934,1726740649894,-500.0,0.00016712,2]
[338571935,1726740649903,-197.135528,0.00016712,2]
[338571936,1726740649913,-996.28,0.00016712,2]
[338571937,1726740649922,-500.0,0.00016712,2]
[338571938,1726740649931,-5000.0,0.00016712,2]
[338571939,1726740649941,-5000.0,0.00016712,2]
[338571940,1726740649950,-5000.0,0.00016712,2]
[338571941,1726740649959,-197.135528,0.00016712,2]
[338571942,1726740649969,-500.0,0.00016712,2]
[338571943,1726740649979,-151.0,0.00016712,2]
[338571944,1726740649988,-512.02,0.00016712,2]
[338571945,1726740649998,-838.67,0.00016712,2]
[338571946,1726740650007,-500.0,0.00016712,2]
[338571947,1726740650016,-151.0,0.00016712,2]
[338571948,1726740650027,-602.27,0.00016712,2]
[338571949,1726740650039,-1477.55,0.00016712,2]
[338571950,1726740650049,-500.0,0.00016712,2]
[338571951,1726740650059,-225.395251,0.00016712,2]
[338571952,1726740650069,-500.0,0.00016712,2]
[338571953,1726740650078,-428.24871143,0.00016712,2]
[338571954,1726740650087,-225.395251,0.00016712,2]
[338571955,1726740650096,-815.63,0.00016712,2]
[338571956,1726740650106,-1023.96,0.00016712,2]
[338571957,1726740650117,-408.32711003,0.00016712,2]
[338571958,1726740650128,-318.01,0.00016712,2]
[338571959,1726740650138,-1597.69,0.00016712,2]
[338571960,1726740650149,-549.03,0.00016712,2]
[338571961,1726740650159,-500.0,0.00016712,2]
[338571962,1726740650169,-500.0,0.00016712,2]
[338571963,1726740650179,-500.0,0.00016712,2]
[338571964,1726740650188,-1044.3,0.00016712,2]
[338571965,1726740650198,-500.0,0.00016712,2]
[338571966,1726740650208,-500.0,0.00016712,2]
[338571967,1726740650218,-500.0,0.00016712,2]
[338571968,1726740650227,-397.52,0.00016712,2]
[338571969,1726740650236,-898.89,0.00016712,2]
[338571970,1726740650246,-500.0,0.00016712,2]
[338571971,1726740650255,-500.0,0.00016712,2]
[338571972,1726740650264,-500.0,0.00016712,2]
[338571973,1726740650273,-1474.04,0.00016712,2]
[338571974,1726740650282,-500.0,0.00016712,2]
[338571975,1726740650292,-1438.07,0.00016712,2]
[338571976,1726740650302,-1138.26,0.00016712,2]
[338571977,1726740650312,-846.31,0.00016712,2]
[338571978,1726740650322,-636.56,0.00016712,2]
[338571979,1726740650332,-551.84,0.00016712,2]
[338571980,1726740650344,-798.946013,0.00016712,2]
[338571981,1726740650354,-798.946013,0.00016712,2]
[338571982,1726740650364,-500.0,0.00016712,2]
[338571983,1726740650374,-798.946013,0.00016712,2]
[338571984,1726740650383,-798.946013,0.00016712,2]
[338571985,1726740650393,-1976.98,0.00016712,2]
[338571986,1726740650403,-882.73,0.00016712,2]
[338571987,1726740650412,-500.0,0.00016712,2]
[338571988,1726740650422,-500.0,0.00016712,2]
[338571989,1726740650430,-500.0,0.00016712,2]
[338571990,1726740650440,-500.0,0.00016712,2]
[338571991,1726740650449,-277.859428,0.00016712,2]
[338571992,1726740650458,-977.11,0.00016712,2]
[338571993,1726740650468,-500.0,0.00016712,2]
[338571994,1726740650477,-500.0,0.00016712,2]
[338571995,1726740650487,-850.62,0.00016712,2]
[338571996,1726740650496,-1813.45,0.00016712,2]
[338571997,1726740650506,-500.0,0.00016712,2]
[338571998,1726740650515,-500.0,0.00016712,2]
[338571999,1726740650524,-500.0,0.00016712,2]
[338572000,1726740650533,-500.0,0.00016712,2]
[338572001,1726740650542,-500.0,0.00016712,2]
[338572002,1726740650551,-500.0,0.00016712,2]
[338572003,1726740650561,-500.0,0.00016712,2]
[338572004,1726740650574,-500.0,0.00016712,2]
[338572005,1726740650583,-500.0,0.00016712,2]
[338572006,1726740650592,-500.0,0.00016712,2]
[338572007,1726740650601,-484.69231632,0.00016712,2]
[338572008,1726740650611,-500.0,0.00016712,2]
[338572009,1726740650620,-500.0,0.00016712,2]
[338572010,1726740650630,-1552.74,0.00016712,2]
[338572011,1726740650639,-1111.2,0.00016712,2]
[338572012,1726740650650,-768.77,0.00016712,2]
[338572013,1726740650661,-219.55260321,0.00016712,2]
[338572014,1726740650673,-500.0,0.00016712,2]
[338572015,1726740650684,-500.0,0.00016712,2]
[338572016,1726740650693,-693.46,0.00016712,2]
[338572017,1726740650702,-670.12,0.00016712,2]
[338572018,1726740650711,-500.0,0.00016712,2]
[338572019,1726740650721,-788.58,0.00016712,2]
[338572020,1726740650731,-500.0,0.00016712,2]
[338572021,1726740650740,-500.0,0.00016712,2]
[338572022,1726740650752,-500.0,0.00016712,2]
[338572023,1726740650762,-500.0,0.00016712,2]
[338572024,1726740650771,-500.0,0.00016712,2]
[338572025,1726740650780,-589.812491,0.00016712,2]
[338572026,1726740650789,-845.74,0.00016712,2]
[338572027,1726740650798,-589.812491,0.00016712,2]
[338572028,1726740650807,-500.0,0.00016712,2]
[338572029,1726740650816,-500.0,0.00016712,2]
[338572030,1726740650825,-500.0,0.00016712,2]
[338572031,1726740650834,-151.0,0.00016712,2]
[338572032,1726740650844,-810.56,0.00016712,2]
[338572033,1726740650853,-663.85,0.00016712,2]
[338572034,1726740650862,-790.93,0.00016712,2]
[338572035,1726740650871,-500.0,0.00016712,2]
[338572036,1726740650880,-3740.87,0.00016712,2]
[338572037,1726740650890,-500.0,0.00016712,2]
[338572038,1726740650899,-837.7,0.00016712,2]
[338572039,1726740650909,-718.389368,0.00016712,2]
[338572040,1726740650919,-810.91,0.00016712,2]
[338572041,1726740650930,-924.59,0.00016712,2]
[338572042,1726740650941,-500.0,0.00016712,2]
[338572043,1726740650952,-500.0,0.00016712,2]
[338572044,1726740650962,-718.389368,0.00016712,2]
[338572045,1726740650973,-508.76,0.00016712,2]
[338572046,1726740650983,-587.95,0.00016712,2]
[338572047,1726740650992,-500.0,0.00016712,2]
[338572048,1726740651002,-500.0,0.00016712,2]
[338572049,1726740651011,-500.0,0.00016712,2]
[338572050,1726740651020,-350.160992,0.00016712,2]
[338572051,1726740651030,-500.0,0.00016712,2]
[338572052,1726740651039,-964.92,0.00016712,2]
[338572053,1726740651048,-500.0,0.00016712,2]
[338572054,1726740651059,-257.391941,0.00016712,2]
[338572055,1726740651068,-257.391941,0.00016712,2]
[338572056,1726740651077,-237.823983,0.00016712,2]
[338572057,1726740651087,-500.0,0.00016712,2]
[338572058,1726740651096,-443.07168323,0.00016712,2]
[338572059,1726740651106,-500.0,0.00016712,2]
[338572060,1726740651116,-350.160992,0.00016712,2]
[338572061,1726740651126,-500.0,0.00016712,2]
[338572062,1726740651136,-879.21,0.00016712,2]
[338572063,1726740651146,-559.71,0.00016712,2]
[338572064,1726740651156,-500.0,0.00016712,2]
[338572065,1726740651165,-151.0,0.00016712,2]
[338572066,1726740651175,-670.66,0.00016712,2]
[338572067,1726740651185,-237.823983,0.00016712,2]
[338572068,1726740651195,-1644.42,0.00016712,2]
[338572069,1726740651206,-151.0,0.00016712,2]
[338572070,1726740651216,-500.0,0.00016712,2]
[338572071,1726740651225,-840.72,0.00016712,2]
[338572072,1726740651234,-523.54,0.00016712,2]
[338572073,1726740651244,-500.0,0.00016712,2]
[338572074,1726740651254,-987.198965,0.00016712,2]
[338572075,1726740651263,-2279.688359,0.00016712,2]
[338572076,1726740651273,-2279.688359,0.00016712,2]
[338572077,1726740651283,-987.198965,0.00016712,2]
[338572078,1726740651294,-500.0,0.00016712,2]
[338572079,1726740651303,-546.77,0.00016712,2]
[338572080,1726740651313,-500.0,0.00016712,2]
[338572081,1726740651323,-677.77,0.00016712,2]
[338572082,1726740651332,-500.0,0.00016712,2]
[338572083,1726740651342,-909.57,0.00016712,2]
[338572084,1726740651353,-500.0,0.00016712,2]
[338572085,1726740651363,-500.0,0.00016712,2]
[338572086,1726740651373,-151.0,0.00016712,2]
[338572087,1726740651383,-656.17,0.00016712,2]
[338572088,1726740651392,-151.0,0.00016712,2]
[338572089,1726740651402,-151.0,0.00016712,2]
[338572090,1726740651412,-500.0,0.00016712,2]
[338572091,1726740651422,-502.05879517,0.00016712,2]
[338572092,1726740651431,-500.0,0.00016712,2]
[338572093,1726740651441,-500.0,0.00016712,2]
[338572094,1726740651451,-500.0,0.00016712,2]
[338572095,1726740651460,-1506.86,0.00016712,2]
[338572096,1726740651471,-519.62304391,0.00016712,2]
[338572097,1726740651480,-543.15415444,0.00016712,2]
[338572098,1726740651489,-500.0,0.00016712,2]
[338572099,1726740651499,-500.0,0.00016712,2]
[338572100,1726740651507,-504.66715886,0.00016712,2]
[338572101,1726740651517,-597.05510064,0.00016712,2]
[338572102,1726740651526,-151.0,0.00016712,2]
[338572103,1726740651536,-577.25,0.00016712,2]
[338572104,1726740651546,-500.0,0.00016712,2]
[338572105,1726740651555,-1294.08,0.00016712,2]
[338572106,1726740651567,-500.0,0.00016712,2]
[338572107,1726740651577,-980.68,0.00016712,2]
[338572108,1726740651586,-500.0,0.00016712,2]
[338572109,1726740651596,-262.06033419,0.00016712,2]
[338572110,1726740651606,-885.04,0.00016712,2]
[338572111,1726740651615,-500.0,0.00016712,2]
[338572112,1726740651625,-500.0,0.00016712,2]
[338572113,1726740651634,-500.0,0.00016712,2]
[338572114,1726740651644,-500.0,0.00016712,2]
[338572115,1726740651654,-500.0,0.00016712,2]
[338572116,1726740651664,-74515.59,0.00016712,2]
[338572117,1726740651673,-500.0,0.00016712,2]
[338572118,1726740651682,-500.0,0.00016712,2]
[338572119,1726740651692,-824.97,0.00016712,2]
[338572120,1726740651702,-840.67,0.00016712,2]
[338572121,1726740651711,-500.0,0.00016712,2]
[338572122,1726740651721,-1495.82,0.00016712,2]
[338572123,1726740651731,-151.0,0.00016712,2]
[338572124,1726740651740,-9107.69,0.00016712,2]
[338572125,1726740651750,-3790.0959619,0.00016763,2]
[338572126,1726740651760,-261.15767013,0.00016773,2]
[338572127,1726740651771,-500.0,0.00016773,2]
[338572128,1726740651779,-500.0,0.00016773,2]
[338572129,1726740651790,-150.112233,0.000168,2]
[338572130,1726740651800,-150.112233,0.000168,2]
[338572131,1726740651811,-150.112233,0.000169,2]
[338572132,1726740651822,-500.0,0.00016973,2]
[338572133,1726740651833,-151.0,0.00016976,2]
[338572134,1726740651843,-151.0,0.00016976,2]
[338572135,1726740651854,-258.713938,0.00016976,2]
[338572136,1726740651864,-500.0,0.00016986,2]
[338572137,1726740651873,-500.0,0.00016986,2]
[338572138,1726740651882,-500.0,0.00016986,2]
[338572139,1726740651892,-399.15375636,0.00016986,2]
[338572140,1726740651902,-500.0,0.00016986,2]
[338572141,1726740651911,-500.0,0.00016986,2]
[338572142,1726740651921,-564.40204833,0.00016986,2]
[338572143,1726740651930,-500.0,0.00016986,2]
[338572144,1726740651939,-500.0,0.00016986,2]
[338572145,1726740651949,-500.0,0.00016986,2]
[338572146,1726740651958,-500.0,0.00016986,2]
[338572147,1726740651968,-500.0,0.00016986,2]
[338572148,1726740651977,-949.74,0.00016986,2]
[338572149,1726740651986,-500.0,0.00016986,2]
[338572150,1726740651996,-151.0,0.00016986,2]
[338572151,1726740652005,-500.0,0.00016986,2]
[338572152,1726740652018,-500.0,0.00016986,2]
[338572153,1726740652028,-500.0,0.00016986,2]
[338572154,1726740652038,-654.45,0.00016986,2]
[338572155,1726740652049,-500.0,0.00016986,2]
[338572156,1726740652059,-522.88122303,0.00016986,2]
[338572157,1726740652069,-1068.34,0.00016986,2]
[338572158,1726740652080,-500.0,0.00016986,2]
[338572159,1726740652090,-1371.04,0.00016986,2]
[338572160,1726740652100,-500.0,0.00016986,2]
[338572161,1726740652110,-500.0,0.00016986,2]
[338572162,1726740652120,-501.62630862,0.00016986,2]
[338572163,1726740652131,-500.0,0.00016986,2]
[338572164,1726740652143,-500.0,0.00016986,2]
[338572165,1726740652154,-565.56,0.00016986,2]
[338572166,1726740652164,-500.0,0.00016986,2]
[338572167,1726740652174,-500.0,0.00016986,2]
[338572168,1726740652184,-500.0,0.00016986,2]
[338572169,1726740652194,-500.0,0.00016986,2]
[338572170,1726740652204,-500.0,0.00016986,2]
[338572171,1726740652213,-500.0,0.00016986,2]
[338572172,1726740652232,-500.0,0.00016986,2]
[338572173,1726740652242,-506.62909295,0.00016986,2]
[338572174,1726740652251,-500.0,0.00016986,2]
[338572175,1726740652260,-500.0,0.00016986,2]
[338572176,1726740652270,-500.0,0.00016986,2]
[338572177,1726740652279,-500.0,0.00016986,2]
[338572178,1726740652288,-500.0,0.00016986,2]
[338572179,1726740652297,-803.7,0.00016986,2]
[338572180,1726740652307,-151.0,0.00016986,2]
[338572181,1726740652316,-500.0,0.00016986,2]
[338572182,1726740652325,-500.0,0.00016986,2]
[338572183,1726740652334,-543.95,0.00016986,2]
[338572184,1726740652343,-500.0,0.00016986,2]
[338572185,1726740652353,-500.0,0.00016986,2]
[338572186,1726740652362,-500.0,0.00016986,2]
[338572187,1726740652371,-500.0,0.00016986,2]
[338572188,1726740652381,-151.0,0.00016986,2]
[338572189,1726740652390,-500.0,0.00016986,2]
[338572190,1726740652399,-500.0,0.00016986,2]
[338572191,1726740652409,-1662.48,0.00016986,2]
[338572192,1726740652418,-671.86,0.00016986,2]
[338572193,1726740652429,-500.0,0.00016986,2]
[338572194,1726740652439,-329.92934811,0.00016986,2]
[338572195,1726740652448,-560.77,0.00016986,2]
[338572196,1726740652458,-500.0,0.00016986,2]
[338572197,1726740652469,-865.34,0.00016986,2]
[338572198,1726740652478,-500.0,0.00016986,2]
[338572199,1726740652488,-500.0,0.00016986,2]
[338572200,1726740652498,-500.0,0.00016986,2]
[338572201,1726740652509,-3295.12,0.00016986,2]
[338572202,1726740652519,-500.62015098,0.00016986,2]
[338572203,1726740652530,-500.0,0.00016986,2]
[338572204,1726740652540,-948.97,0.00016986,2]
[338572205,1726740652552,-500.0,0.00016986,2]
[338572206,1726740652563,-500.0,0.00016986,2]
[338572207,1726740652576,-974.21,0.00016986,2]
[338572208,1726740652586,-500.0,0.00016986,2]
[338572209,1726740652596,-501.13,0.00016986,2]
[338572210,1726740652608,-151.0,0.00016986,2]
[338572211,1726740652618,-172.278532,0.00016986,2]
[338572212,1726740652630,-500.0,0.00016986,2]
[338572213,1726740652641,-1043.35,0.00016986,2]
[338572214,1726740652651,-500.0,0.00016986,2]
[338572215,1726740652785,-500.0,0.00016986,2]
[338572216,1726740652810,-661.81,0.00016986,2]
[338572217,1726740652827,-500.0,0.00016986,2]